bitfinex/quotes_SOLUSD_20220311
["timestamp","ask_amount","ask_price","bid_price","bid_amount"]
[1646975760314,23.4773,80.746,80.7,18.5804]
[1646975761612,18.5844,80.74,80.693,23.9031]
[1646975762614,18.0844,80.74,80.693,23.9031]
[1646975763015,6.0,80.739,80.693,23.9031]
[1646975763914,6.0,80.739,80.676,25.55200289]
[1646975764118,18.5868,80.73,80.68,41.3307]
[1646975764316,50.19994845,80.729,80.68,41.3307]
[1646975765449,22.6872,80.728,80.68,66.88270289]
[1646975765649,22.6872,80.728,80.681,28.01707713]
[1646975765847,22.6872,80.728,80.69,18.5831]
[1646975766452,80.42631447,80.728,80.69,18.5831]
[1646975767253,22.6872,80.728,80.69,18.5831]
[1646975768554,6.0,80.727,80.69,18.5831]
[1646975769455,22.6872,80.728,80.69,18.5831]
[1646975771458,63.91642421,80.729,80.69,18.5831]
[1646975772059,18.5846,80.74,80.69,18.5831]
[1646975772257,12.194,80.739,80.691,23.9192]
[1646975772458,6.0,80.739,80.7,18.5817]
[1646975772657,24.3848,80.757,80.7,18.5817]
[1646975772858,6.0,80.756,80.701,23.9192]
[1646975773060,62.8961889,80.755,80.701,23.9192]
[1646975773460,6.0,80.756,80.71,18.5797]
[1646975773661,24.3848,80.757,80.711,24.44]
[1646975775262,24.3848,80.757,80.72,18.5744]
[1646975779065,6.0,80.756,80.72,18.5744]
[1646975779264,24.3848,80.757,80.72,18.5744]
[1646975781067,59.62931935,80.762,80.72,18.5744]
[1646975781270,22.9422,80.778,80.72,18.5744]
[1646975781467,22.9422,80.778,80.73,18.574]
[1646975781668,22.9422,80.778,80.731,24.9305]
[1646975782268,63.44009424,80.777,80.731,24.9305]
[1646975782870,6.0,80.776,80.731,24.9305]
[1646975785696,6.0,80.776,80.74,18.5729]
[1646975786496,6.0,80.776,80.731,24.9305]
[1646975786696,6.0,80.776,80.731,24.9605]
[1646975788898,12.191,80.776,80.731,24.9605]
[1646975789899,18.5775,80.77,80.731,24.9605]
[1646975790701,18.5775,80.77,80.731,0.03]
[1646975790903,29.489,80.769,80.731,0.03]
[1646975791103,18.5834,80.76,80.731,0.03]
[1646975791303,57.49333711,80.759,80.731,0.03]
[1646975791600,60.53781668,80.759,80.731,0.03]
[1646975792101,26.34247957,80.758,80.731,0.03]
[1646975792502,3.04447957,80.757,80.731,0.03]
[1646975793104,18.5824,80.75,80.731,0.03]
[1646975793605,6.0,80.749,80.731,0.03]
[1646975793804,24.6751,80.748,80.731,0.03]
[1646975795706,6.192,80.747,80.731,0.03]
[1646975795905,60.11317878,80.746,80.731,0.03]
[1646975796106,6.192,80.745,80.731,0.03]
[1646975796707,60.11317878,80.746,80.731,0.03]
[1646975796907,60.11317878,80.746,80.702,24.6876]
[1646975797308,6.0,80.745,80.702,24.6876]
[1646975799911,6.192,80.747,80.702,24.6876]
[1646975800211,6.0,80.746,80.702,24.6876]
[1646975800912,6.0,80.746,80.71,18.5793]
[1646975801111,24.6751,80.748,80.71,18.5793]
[1646975801912,24.6751,80.748,80.702,24.6876]
[1646975802311,24.6751,80.748,80.703,6.192]
[1646975802511,24.6751,80.748,80.702,24.6876]
[1646975803011,6.0,80.747,80.702,24.6876]
[1646975803611,6.0,80.747,80.71,18.5795]
[1646975803810,50.08066338,80.752,80.71,18.5795]
[1646975804010,22.6788,80.768,80.71,18.5795]
[1646975804211,6.0,80.767,80.711,24.2974]
[1646975804412,6.0,80.767,80.712,6.192]
[1646975805013,58.39052941,80.766,80.72,18.5766]
[1646975805415,58.39052941,80.766,80.721,24.2974]
[1646975805615,22.6788,80.768,80.721,24.2974]
[1646975806114,22.6788,80.768,80.73,18.5749]
[1646975806514,56.83781277,80.767,80.73,18.5749]
[1646975807918,56.83781277,80.767,80.731,6.192]
[1646975808418,56.83781277,80.767,80.73,18.5749]
[1646975809315,6.0,80.766,80.73,18.5749]
[1646975809518,6.0,80.765,80.73,18.5749]
[1646975809716,56.83781277,80.767,80.73,18.5749]
[1646975810018,56.83781277,80.767,80.731,6.0]
[1646975810242,6.0,80.766,80.731,6.0]
[1646975810419,56.83781277,80.767,80.731,6.0]
[1646975810923,56.83781277,80.767,80.7,0.03]
[1646975810924,18.5801,80.76,80.7,0.03]
[1646975811318,37.99369777,80.759,80.7,0.03]
[1646975811518,68.83599123,80.759,80.7,0.03]
[1646975811718,14.54,80.75,80.7,0.03]
[1646975811919,180.06125055,80.748,80.7,0.03]
[1646975812117,180.06125055,80.748,80.637,6.192]
[1646975812118,124.0,80.739,80.637,6.192]
[1646975812319,14.54,80.73,80.637,48.0713]
[1646975812520,124.0,80.727,80.637,48.0713]
[1646975812718,6.197,80.726,80.637,48.0713]
[1646975812918,124.0,80.725,80.637,48.0713]
[1646975813119,18.599,80.71,80.637,29.8058]
[1646975813319,124.0,80.707,80.637,6.192]
[1646975813522,6.197,80.706,80.63,6.197]
[1646975813719,9.24147957,80.706,80.63,6.197]
[1646975814019,127.04447957,80.705,80.63,6.197]
[1646975814218,6.198,80.704,80.63,6.197]
[1646975814420,124.0,80.703,80.63,6.197]
[1646975814620,6.198,80.702,80.63,6.197]
[1646975815220,54.35580538,80.689,80.63,6.197]
[1646975815423,124.0,80.688,80.598,41.14712905]
[1646975815623,124.0,80.688,80.598,21.48674379]
[1646975815824,124.0,80.688,80.59,48.4219]
[1646975815825,124.0,80.686,80.59,48.4219]
[1646975816124,40.9572182,80.685,80.567,6.2]
[1646975816322,124.0,80.669,80.567,6.2]
[1646975816523,124.0,80.659,80.555,6.202]
[1646975816824,124.0,80.657,80.556,3.77645573]
[1646975817024,124.0,80.653,80.557,6.202]
[1646975817323,18.614,80.64,80.56,18.6119]
[1646975817524,53.48539634,80.639,80.561,6.203]
[1646975817749,53.48539634,80.639,80.557,6.203]
[1646975818123,53.48539634,80.639,80.558,3.77564002]
[1646975818424,53.48539634,80.639,80.558,3.04447957]
[1646975819223,53.48539634,80.639,80.57,18.6104]
[1646975819824,6.0,80.638,80.57,18.6104]
[1646975820026,6.203,80.637,80.57,18.6104]
[1646975820226,18.6118,80.63,80.57,18.6104]
[1646975820527,18.6118,80.63,80.557,6.203]
[1646975820528,124.0,80.628,80.557,6.203]
[1646975820728,130.204,80.627,80.557,6.203]
[1646975821028,124.0,80.625,80.557,6.203]
[1646975821228,47.12150155,80.626,80.557,6.203]
[1646975821229,124.0,80.623,80.557,6.203]
[1646975821427,18.6181,80.61,80.557,6.203]
[1646975821627,59.70578956,80.608,80.557,6.203]
[1646975821827,6.204,80.607,80.557,6.203]
[1646975823527,59.70578956,80.608,80.557,6.203]
[1646975824930,6.204,80.625,80.532,3.04447957]
[1646975825131,6.204,80.637,80.544,130.0]
[1646975825535,6.204,80.637,80.56,18.612]
[1646975825734,6.204,80.637,80.544,133.04447957]
[1646975825735,6.204,80.637,80.561,6.0]
[1646975825934,62.92855884,80.636,80.561,6.0]
[1646975826137,6.203,80.635,80.561,6.0]
[1646975826337,6.203,80.635,80.551,6.0]
[1646975827138,6.0,80.634,80.57,18.6095]
[1646975827634,6.203,80.633,80.57,18.6095]
[1646975829037,6.203,80.633,80.571,6.0]
[1646975830537,6.203,80.633,80.58,18.6081]
[1646975830938,6.202,80.658,80.58,18.6081]
[1646975831136,6.202,80.658,80.581,133.04447957]
[1646975831339,6.2,80.689,80.581,127.04447957]
[1646975831542,58.36340317,80.702,80.583,124.0]
[1646975831739,56.99811149,80.679,80.6,18.5981]
[1646975832037,6.2,80.678,80.601,6.0]
[1646975832639,18.602,80.67,80.601,6.0]
[1646975833063,6.2,80.678,80.61,18.5996]
[1646975833663,6.2,80.678,80.611,6.0]
[1646975834364,6.2,80.678,80.62,18.5983]
[1646975834665,6.0,80.677,80.62,18.5983]
[1646975834863,6.199,80.676,80.62,18.5983]
[1646975835463,56.99811149,80.679,80.621,6.0]
[1646975835464,6.199,80.678,80.621,6.0]
[1646975835864,56.99811149,80.679,80.621,6.0]
[1646975836065,56.99811149,80.679,80.611,6.0]
[1646975837167,124.0,80.678,80.603,23.1715]
[1646975837370,130.2,80.677,80.603,23.1715]
[1646975837568,158.88169777,80.677,80.603,23.1715]
[1646975837768,25.6372182,80.676,80.603,23.1715]
[1646975837968,12.2,80.675,80.603,23.1715]
[1646975838168,18.6014,80.67,80.603,23.1715]
[1646975838370,6.2,80.669,80.603,23.1715]
[1646975838571,124.0,80.668,80.59,18.604]
[1646975838770,6.2,80.669,80.581,47.4228]
[1646975838771,50.80497856,80.666,80.581,47.4228]
[1646975839174,18.6049,80.66,80.581,47.4228]
[1646975839369,6.2,80.659,80.581,47.4228]
[1646975839772,6.2,80.663,80.581,47.4228]
[1646975840170,56.39059793,80.649,80.581,47.4228]
[1646975840781,56.39059793,80.649,80.59,18.606]
[1646975841180,56.39059793,80.649,80.582,3.04447957]
[1646975841384,61.70059793,80.649,80.581,47.4228]
[1646975842181,6.202,80.648,80.581,47.4228]
[1646975842981,6.0,80.647,80.581,47.4228]
[1646975843180,6.202,80.646,80.59,18.6061]
[1646975844782,6.0,80.647,80.59,18.6061]
[1646975845385,6.202,80.659,80.591,3.04447957]
[1646975845585,6.2,80.663,80.61,18.6013]
[1646975846184,60.45099753,80.662,80.61,18.6013]
[1646975846386,6.2,80.661,80.61,18.6013]
[1646975846585,60.45099753,80.662,80.61,18.6013]
[1646975847786,18.6029,80.66,80.6,18.6042]
[1646975848185,6.2,80.659,80.6,18.6042]
[1646975848386,6.2,80.661,80.592,22.5197]
[1646975848789,63.64800152,80.649,80.592,22.5197]
[1646975848990,12.2,80.648,80.592,22.5197]
[1646975849389,6.0,80.648,80.592,22.5197]
[1646975851890,6.0,80.648,80.6,18.605]
[1646975852093,18.6033,80.66,80.6,18.605]
[1646975852790,6.0,80.659,80.6,18.605]
[1646975853895,52.28068851,80.649,80.6,18.605]
[1646975856792,58.48068851,80.649,80.6,18.605]
[1646975857396,52.28068851,80.649,80.6,18.605]
[1646975858293,52.28068851,80.649,80.592,22.5197]
[1646975858494,57.03068851,80.649,80.592,22.5197]
[1646975858893,6.2,80.648,80.592,22.5197]
[1646975859094,6.0,80.647,80.592,22.5197]
[1646975859694,6.0,80.647,80.6,18.605]
[1646975860094,18.6029,80.66,80.6,18.605]
[1646975860395,6.2,80.659,80.6,18.605]
[1646975860996,64.29926287,80.658,80.6,18.605]
[1646975861297,6.2,80.657,80.6,18.605]
[1646975863297,18.6052,80.65,80.6,18.605]
[1646975863502,6.0,80.649,80.6,18.605]
[1646975865398,6.2,80.657,80.6,18.605]
[1646975865698,6.0,80.656,80.6,18.605]
[1646975865898,6.2,80.655,80.6,18.605]
[1646975866920,6.2,80.673,80.61,18.5942]
[1646975867324,6.0,80.672,80.61,18.5942]
[1646975867527,55.71826304,80.671,80.611,6.0]
[1646975868126,55.71826304,80.671,80.601,6.0]
[1646975868925,55.71826304,80.671,80.62,18.599]
[1646975869124,55.71826304,80.671,80.621,6.0]
[1646975870326,6.199,80.67,80.621,6.0]
[1646975870526,24.7994,80.67,80.621,6.0]
[1646975870827,24.7994,80.67,80.62,18.599]
[1646975871025,24.7994,80.67,80.614,18.3005]
[1646975871230,24.7994,80.67,80.61,18.6019]
[1646975871825,18.6004,80.67,80.61,18.6019]
[1646975873232,6.2,80.669,80.602,22.6944]
[1646975873432,18.6071,80.65,80.602,22.6944]
[1646975873631,56.55299413,80.648,80.602,22.6944]
[1646975873833,6.2,80.647,80.602,22.6944]
[1646975874334,56.55299413,80.648,80.602,22.6944]
[1646975874535,6.0,80.647,80.602,22.6944]
[1646975880845,6.0,80.647,80.61,18.6023]
[1646975881341,6.2,80.659,80.61,18.6023]
[1646975881942,51.18179846,80.658,80.61,18.6023]
[1646975882744,51.18179846,80.658,80.602,22.6944]
[1646975883143,6.0,80.657,80.602,22.6944]
[1646975883944,6.0,80.657,80.61,18.6022]
[1646975886345,18.6009,80.67,80.61,18.6022]
[1646975887148,68.98194894,80.669,80.61,18.6022]
[1646975888246,68.98194894,80.669,80.611,6.0]
[1646975889347,68.98194894,80.669,80.62,18.6002]
[1646975890046,6.0,80.668,80.62,18.6002]
[1646975890246,6.2,80.667,80.62,18.6002]
[1646975890846,18.6028,80.66,80.611,24.4886]
[1646975891046,6.2,80.659,80.611,24.4886]
[1646975892649,6.2,80.659,80.611,18.4886]
[1646975892849,6.2,80.659,80.612,6.0]
[1646975893649,6.0,80.658,80.612,6.0]
[1646975893949,53.94306859,80.656,80.612,6.0]
[1646975896555,6.0,80.658,80.612,6.0]
[1646975897156,18.6028,80.66,80.612,6.0]
[1646975897353,18.6006,80.67,80.612,6.0]
[1646975897553,65.91070625,80.664,80.62,18.6002]
[1646975897755,6.2,80.663,80.62,18.6002]
[1646975897954,6.2,80.663,80.612,6.0]
[1646975898555,18.6029,80.66,80.612,6.0]
[1646975898955,6.2,80.659,80.612,6.0]
[1646975899255,12.2,80.659,80.612,6.0]
[1646975899459,12.2,80.659,80.611,18.4886]
[1646975900157,18.6049,80.65,80.611,18.4886]
[1646975900582,12.2,80.659,80.611,18.4886]
[1646975900786,6.2,80.659,80.611,18.4886]
[1646975900983,62.0248,80.66,80.611,18.4886]
[1646975901183,57.24809975,80.649,80.611,18.4886]
[1646975901384,6.2,80.648,80.611,18.4886]
[1646975902886,6.2,80.648,80.59,18.6056]
[1646975903089,23.3002,80.647,80.582,22.7092]
[1646975903287,18.6073,80.64,80.582,22.7092]
[1646975903488,6.202,80.639,80.583,3.80089654]
[1646975903688,6.202,80.646,80.583,3.80089654]
[1646975904488,65.92750878,80.629,80.583,3.80089654]
[1646975904688,6.203,80.628,80.577,18.5195]
[1646975905290,6.203,80.628,80.567,22.6307]
[1646975905488,18.6119,80.62,80.567,40.8451]
[1646975906088,18.6119,80.62,80.567,22.6307]
[1646975906890,6.203,80.619,80.567,22.6307]
[1646975907288,56.88609148,80.609,80.567,22.6307]
[1646975908089,6.0,80.608,80.567,22.6307]
[1646975908389,6.0,80.608,80.57,18.6116]
[1646975910192,6.0,80.608,80.567,22.6307]
[1646975911196,6.204,80.626,80.57,18.6118]
[1646975911394,6.0,80.625,80.57,18.6118]
[1646975911596,6.203,80.624,80.57,18.6118]
[1646975911994,62.14419804,80.625,80.57,18.6118]
[1646975912196,6.203,80.624,80.57,18.6118]
[1646975912397,18.6122,80.62,80.57,18.6118]
[1646975912596,6.203,80.619,80.57,18.6118]
[1646975912998,18.6122,80.62,80.57,18.6118]
[1646975914297,18.6122,80.62,80.567,22.6307]
[1646975915099,6.0,80.619,80.567,22.6307]
[1646975915500,62.14419804,80.625,80.57,18.6117]
[1646975917102,18.6118,80.62,80.57,18.6117]
[1646975917501,6.203,80.624,80.57,18.6117]
[1646975919130,6.0,80.623,80.57,18.6117]
[1646975919331,6.203,80.622,80.57,18.6117]
[1646975920030,6.0,80.623,80.57,18.6117]
[1646975920232,6.0,80.624,80.57,18.6117]
[1646975920433,22.6353,80.639,80.57,42.73660132]
[1646975920631,22.6353,80.639,80.59,18.6025]
[1646975921232,6.0,80.638,80.59,18.6025]
[1646975921436,22.6353,80.639,80.59,18.6025]
[1646975921834,6.0,80.638,80.59,18.6025]
[1646975922634,22.6353,80.639,80.59,18.6025]
[1646975923036,6.0,80.638,80.59,18.6025]
[1646975923234,22.6353,80.639,80.59,18.6025]
[1646975923434,22.6353,80.639,80.59,37.1797]
[1646975923835,59.56918402,80.637,80.59,37.1797]
[1646975924436,22.6353,80.639,80.59,37.1797]
[1646975926239,22.6353,80.639,80.59,18.6025]
[1646975926643,6.0,80.638,80.59,18.6025]
[1646975927241,6.0,80.638,80.589,18.6071]
[1646975927443,6.0,80.638,80.59,6.0]
[1646975928643,6.0,80.638,80.59,24.6072]
[1646975929544,22.6353,80.639,80.59,24.6072]
[1646975932556,6.202,80.661,80.59,24.6072]
[1646975932751,6.202,80.661,80.61,18.5924]
[1646975932949,6.2,80.701,80.61,25.4924]
[1646975933248,6.2,80.701,80.612,124.0]
[1646975933452,22.6534,80.727,80.614,124.0]
[1646975933650,23.4987,80.726,80.616,124.0]
[1646975933848,23.4987,80.726,80.631,124.0]
[1646975934052,6.197,80.75,80.66,18.5821]
[1646975934252,23.4987,80.749,80.661,29.5172]
[1646975934454,6.195,80.748,80.662,124.0]
[1646975934650,60.11726692,80.747,80.663,6.0]
[1646975934852,6.195,80.746,80.663,9.04447957]
[1646975935054,6.195,80.746,80.68,18.5812]
[1646975935055,6.0,80.745,80.68,18.5812]
[1646975935253,6.194,80.744,80.681,6.0]
[1646975935656,6.194,80.744,80.68,3.04447957]
[1646975935858,6.194,80.744,80.681,6.0]
[1646975936263,6.194,80.744,80.69,18.5803]
[1646975936558,6.194,80.775,80.691,6.0]
[1646975936758,6.192,80.776,80.691,31.6502031]
[1646975937059,6.192,80.776,80.692,149.6502031]
[1646975937267,46.95498474,80.775,80.693,6.0]
[1646975937459,46.95498474,80.775,80.71,18.5756]
[1646975937460,6.192,80.774,80.71,18.5756]
[1646975937663,12.192,80.774,80.71,18.5756]
[1646975937858,12.192,80.774,80.693,9.04447957]
[1646975938057,12.192,80.774,80.693,3.04447957]
[1646975938659,18.578,80.77,80.7,18.5811]
[1646975938858,6.192,80.769,80.7,18.5811]
[1646975939358,6.0,80.768,80.7,18.5811]
[1646975939562,6.192,80.767,80.7,18.5811]
[1646975939960,6.0,80.768,80.701,3.04447957]
[1646975940159,6.0,80.768,80.71,18.577]
[1646975940560,6.192,80.774,80.71,18.577]
[1646975940759,6.0,80.773,80.71,18.577]
[1646975940959,6.192,80.772,80.71,18.577]
[1646975941361,18.5797,80.77,80.701,3.04447957]
[1646975941960,6.192,80.769,80.701,3.04447957]
[1646975942762,18.58,80.76,80.701,3.04447957]
[1646975942963,48.28816498,80.758,80.701,3.04447957]
[1646975943363,48.28816498,80.758,80.71,18.5791]
[1646975944067,48.28816498,80.758,80.685,3.04447957]
[1646975944265,6.194,80.757,80.685,3.04447957]
[1646975944466,6.194,80.757,80.682,48.2485]
[1646975944863,6.194,80.757,80.69,18.5837]
[1646975945062,48.28816498,80.758,80.69,18.5837]
[1646975945885,6.0,80.757,80.69,18.5837]
[1646975946088,18.5823,80.75,80.69,18.5837]
[1646975947086,48.28816498,80.758,80.69,18.5837]
[1646975948286,6.194,80.769,80.691,3.04447957]
[1646975948488,6.192,80.775,80.692,6.0]
[1646975948687,6.192,80.775,80.71,18.5766]
[1646975949186,58.49770113,80.774,80.71,18.5766]
[1646975949387,6.192,80.773,80.71,18.5766]
[1646975949587,6.0,80.772,80.71,18.5766]
[1646975949790,6.192,80.771,80.71,18.5766]
[1646975951291,18.5778,80.77,80.71,18.5766]
[1646975951492,6.192,80.769,80.71,18.5766]
[1646975952493,6.192,80.769,80.711,6.0]
[1646975952696,6.0,80.772,80.72,18.5708]
[1646975953497,58.49770113,80.774,80.72,18.5708]
[1646975954095,18.578,80.77,80.72,18.5708]
[1646975955195,6.0,80.769,80.72,18.5708]
[1646975955395,12.192,80.769,80.72,18.5708]
[1646975963602,12.192,80.769,80.71,18.5789]
[1646975963803,18.5798,80.76,80.71,18.5789]
[1646975965605,18.5798,80.76,80.704,23.161]
[1646975967108,6.192,80.759,80.704,23.161]
[1646975967506,6.0,80.758,80.704,23.161]
[1646975969212,6.0,80.758,80.71,18.5792]
[1646975970414,6.192,80.773,80.71,18.5792]
[1646975970613,6.0,80.772,80.71,18.5792]
[1646975970914,6.0,80.772,80.68,3.04447957]
[1646975970915,14.54,80.76,80.68,3.04447957]
[1646975971114,124.0,80.757,80.615,72.3078]
[1646975971315,124.0,80.739,80.615,72.3078]
[1646975971539,124.0,80.729,80.615,72.3078]
[1646975971738,124.0,80.719,80.615,72.3078]
[1646975971938,124.0,80.709,80.6,18.1977]
[1646975972138,124.0,80.707,80.6,18.1977]
[1646975972362,124.0,80.705,80.6,18.1977]
[1646975972539,14.54,80.7,80.601,6.199]
[1646975972740,6.199,80.699,80.601,6.199]
[1646975972941,49.0623,80.698,80.601,6.199]
[1646975973140,6.199,80.697,80.601,6.199]
[1646975973539,19.38827214,80.696,80.601,6.199]
[1646975973742,59.32502741,80.695,80.601,6.199]
[1646975973940,53.12602741,80.695,80.62,18.5977]
[1646975974142,53.12602741,80.695,80.621,130.199]
[1646975974543,49.0623,80.698,80.621,130.199]
[1646975974742,6.198,80.709,80.622,6.0]
[1646975974943,55.2603,80.729,80.641,124.0]
[1646975975143,55.2603,80.729,80.642,6.0]
[1646975975346,55.2603,80.729,80.644,124.0]
[1646975975644,6.198,80.729,80.646,124.0]
[1646975975843,6.196,80.745,80.651,124.0]
[1646975976045,6.0,80.744,80.661,124.0]
[1646975976344,6.195,80.743,80.663,124.0]
[1646975976543,6.195,80.745,80.665,124.0]
[1646975976745,6.0,80.744,80.667,124.0]
[1646975976946,6.195,80.743,80.669,124.0]
[1646975977147,6.195,80.743,80.671,124.0]
[1646975977349,6.0,80.742,80.673,124.0]
[1646975977547,12.195,80.741,80.674,12.195]
[1646975977747,12.195,80.741,80.674,6.195]
[1646975977950,12.195,80.741,80.68,18.5801]
[1646975978148,12.195,80.741,80.681,6.0]
[1646975978349,12.195,80.741,80.676,6.194]
[1646975978549,12.195,80.741,80.677,6.0]
[1646975978750,12.195,80.741,80.678,6.195]
[1646975978953,12.195,80.741,80.67,6.195]
[1646975979158,6.0,80.741,80.69,18.581]
[1646975979355,60.06345709,80.747,80.69,18.581]
[1646975979556,6.0,80.745,80.69,18.581]
[1646975982760,6.194,80.744,80.69,18.581]
[1646975983359,6.194,80.744,80.68,18.5851]
[1646975983561,6.194,80.744,80.66,61.9465]
[1646975983760,6.42,80.744,80.653,124.0]
[1646975983962,6.195,80.743,80.662,6.195]
[1646975984161,6.195,80.743,80.662,130.195]
[1646975984365,29.11353729,80.759,80.662,130.195]
[1646975984366,35.30853729,80.759,80.671,124.0]
[1646975984562,6.194,80.777,80.673,124.0]
[1646975984761,29.11353729,80.776,80.675,124.0]
[1646975984960,29.11353729,80.776,80.677,124.0]
[1646975985161,29.11353729,80.776,80.679,124.0]
[1646975985360,59.17642761,80.775,80.681,124.0]
[1646975985560,59.17642761,80.775,80.683,124.0]
[1646975985763,29.11353729,80.774,80.685,124.0]
[1646975985962,29.11353729,80.774,80.682,6.0]
[1646975985963,29.11353729,80.774,80.687,124.0]
[1646975986160,6.192,80.773,80.691,124.0]
[1646975986361,6.192,80.774,80.693,124.0]
[1646975986562,6.192,80.774,80.695,124.0]
[1646975986761,6.192,80.774,80.697,124.0]
[1646975986961,6.192,80.774,80.699,124.0]
[1646975987162,6.0,80.773,80.71,18.5742]
[1646975987463,6.192,80.772,80.711,6.192]
[1646975987661,6.192,80.772,80.702,6.192]
[1646975988062,6.192,80.772,80.72,18.5742]
[1646975989464,6.0,80.773,80.72,18.5742]
[1646975989664,6.192,80.772,80.72,18.5742]
[1646975991163,6.192,80.774,80.72,18.5742]
[1646975992866,18.5772,80.77,80.72,18.5742]
[1646975993066,18.5772,80.77,80.697,30.6916]
[1646975993267,6.192,80.769,80.698,6.0]
[1646975993665,156.15801686,80.768,80.699,6.192]
[1646975993866,18.5806,80.76,80.669,6.192]
[1646975994064,174.61645883,80.759,80.669,6.192]
[1646975994267,61.9624,80.75,80.669,6.192]
[1646975994469,6.195,80.749,80.669,6.192]
[1646975994665,12.195,80.749,80.669,6.192]
[1646975994866,18.5887,80.74,80.66,68.1462]
[1646975995068,48.69365915,80.738,80.66,68.1462]
[1646975995268,6.195,80.737,80.66,68.1462]
[1646975995665,6.195,80.737,80.67,18.5879]
[1646975995869,6.195,80.737,80.671,6.195]
[1646975996265,18.5866,80.73,80.671,6.195]
[1646975998666,6.0,80.729,80.671,6.195]
[1646975999467,6.195,80.728,80.68,18.5859]
[1646976001074,6.195,80.728,80.671,6.195]
[1646976001075,18.5891,80.72,80.671,6.195]
[1646976001273,65.19689765,80.719,80.61,14.54]
[1646976001475,65.19689765,80.719,80.612,12.93640836]
[1646976001671,143.67271451,80.719,80.612,12.93640836]
[1646976001870,32.15801686,80.718,80.61,23.49969045]
[1646976002071,18.5984,80.7,80.63,18.5971]
[1646976002271,46.92738696,80.698,80.63,18.5971]
[1646976002471,6.198,80.697,80.63,18.5971]
[1646976003076,6.0,80.696,80.63,18.5971]
[1646976003275,18.5958,80.69,80.63,18.5971]
[1646976006610,6.198,80.689,80.63,18.5971]
[1646976007712,6.198,80.697,80.63,18.5971]
[1646976008113,46.92738696,80.698,80.631,23.49969045]
[1646976008315,46.92738696,80.698,80.64,18.5929]
[1646976009614,6.0,80.697,80.64,18.5929]
[1646976011218,6.0,80.697,80.621,22.8652]
[1646976011219,18.5958,80.69,80.63,18.5962]
[1646976011416,18.5958,80.69,80.631,6.0]
[1646976011619,6.198,80.689,80.631,6.0]
[1646976013121,6.0,80.688,80.64,18.5944]
[1646976013321,6.198,80.687,80.64,18.5944]
[1646976013521,46.92738696,80.698,80.64,18.5944]
[1646976013724,6.0,80.697,80.64,18.5944]
[1646976016821,6.0,80.697,80.631,18.3389]
[1646976017022,6.0,80.697,80.632,6.0]
[1646976017222,6.198,80.696,80.632,6.0]
[1646976017625,6.198,80.697,80.632,6.0]
[1646976018027,46.92738696,80.698,80.64,18.5946]
[1646976018225,46.92738696,80.698,80.641,6.0]
[1646976019029,6.0,80.697,80.641,6.0]